Workbook

Sheet Tabelle1
A1: 35 | B1: Anzahl der getrunkenen Standardgläser
A2: 180 | B2: Trinkdauer insgesamt [min.]
A3: 10 | B3: Zeitraum zwischen Trink-Ende und Kontrolle der Blutalkoholkonzentration [min.]
A4: 60 | B4: Anflutungszeit eines Standardglases [min.]
A5: 90 | B5: Körpergewicht [kg]
A6: 180 | B6: Körpergröße [cm]
A7: =A5/(A6*0.01)^2 -> 27.77777778 | B7: BMI (errechnet)
A8: 25 | B8: BMI bei Normalgewicht (Vorgabe)
A9: =IF(A7<A8,A5,A8*(A6*0.01)^2) -> 81 | B9: Gewicht [kg]
A10: m | B10: Geschlecht | C10: m
C11: w
A12: 1 | B12: Standardglas enthält | E12: 10 | F12: g Alkohol
A13: 1 | B13: l Alkohol mit | D13: 5 | E13: Vol.-% = | F13: =A13*1000*D13/100*0.8/$E$12 -> 4 | G13: =IF(F13=1,"Standardglas","Standardgläser") -> Standardgläser
A14: 0.25 | B14: l Bier mit | D14: 5 | E14: Vol.-% = | F14: =A14*1000*D14/100*0.8/$E$12 -> 1 | G14: =IF(F14=1,"Standardglas","Standardgläser") -> Standardglas
A15: 0.25 | B15: l Wein mit | D15: 15 | E15: Vol.-% = | F15: =A15*1000*D15/100*0.8/$E$12 -> 3 | G15: =IF(F15=1,"Standardglas","Standardgläser") -> Standardgläser
A16: 2 | B16: cl Schnaps | D16: 37.5 | E16: Vol.-% = | F16: =A16*10*D16/100*0.8/$E$12 -> 0.6 | G16: =IF(F16=1,"Standardglas","Standardgläser") -> Standardgläser
A18: 0.2 | B18: Resorptionsdefizit (Anteil an der Alkoholmenge, der nicht ins Blut geht)
A19: =E12/A12-E12/A12*A18 -> 8 | B19: Alkoholmenge eines Standardglases, die ins Blut geht [g]
A20: =IF(A10="m",70%,60%) -> 0.7 | B20: Flüssigkeitsanteil am Körpergewicht
A21: 0.15 | B21: Abbau der Blutalkoholkonzentration (BAK) pro Stunde [Promille]
A23: =SUM(E26:E59) -> 2.075440917 | B23: Blutalkoholkonzentration im Zeitpunkt der Kontrolle [Promille]
A25: GetrunkenesStandard-glas Nr. | B25: Zeitpunkt: Glas ausge- trunken | D25: Alkohol-Abbauzeit [min.] | E25: Beitrag des Standard- glases zur BAK im Zeit- punkt der Kontrolle
A26: =IF($A$1>=1,1,"") -> 1 | B26: =IF(A26<=$A$1,$A$2/$A$1*A26,"") -> 5.142857143 | D26: =IF($A$1>=A26,IF($A$2+$A$3-A26*$A$2/$A$1-$A$4<0,0,$A$2+$A$3-A26*$A$2/$A$1-$A$4),"") -> 124.8571429 | E26: =IF($A$1>=A26,IF($A$19/$A$9/$A$20-$A$21/60*D26<0,0,$A$19/$A$9/$A$20-$A$21/60*D26),"") -> 0
A27: =IF($A$1>=2,2,"") -> 2 | B27: =IF(A27<=$A$1,$A$2/$A$1*A27,"") -> 10.28571429 | D27: 119.7142857 | E27: 0
A28: =IF($A$1>=3,3,"") -> 3 | B28: 15.42857143 | D28: 114.5714286 | E28: 0
A29: =IF($A$1>=4,4,"") -> 4 | B29: 20.57142857 | D29: 109.4285714 | E29: 0
A30: =IF($A$1>=5,5,"") -> 5 | B30: 25.71428571 | D30: 104.2857143 | E30: 0
A31: =IF($A$1>=6,6,"") -> 6 | B31: 30.85714286 | D31: 99.14285714 | E31: 0
A32: =IF($A$1>=7,7,"") -> 7 | B32: 36 | D32: 94 | E32: 0
A33: =IF($A$1>=8,8,"") -> 8 | B33: 41.14285714 | D33: 88.85714286 | E33: 0
A34: =IF($A$1>=9,9,"") -> 9 | B34: 46.28571429 | D34: 83.71428571 | E34: 0
A35: =IF($A$1>=10,10,"") -> 10 | B35: 51.42857143 | D35: 78.57142857 | E35: 0
A36: =IF($A$1>=11,11,"") -> 11 | B36: 56.57142857 | D36: 73.42857143 | E36: 0
A37: =IF($A$1>=12,12,"") -> 12 | B37: 61.71428571 | D37: 68.28571429 | E37: 0
A38: =IF($A$1>=13,13,"") -> 13 | B38: 66.85714286 | D38: 63.14285714 | E38: 0
A39: =IF($A$1>=14,14,"") -> 14 | B39: 72 | D39: 58 | E39: 0
A40: =IF($A$1>=15,15,"") -> 15 | B40: 77.14285714 | D40: 52.85714286 | E40: 0.008950617284
A41: =IF($A$1>=16,16,"") -> 16 | B41: 82.28571429 | D41: 47.71428571 | E41: 0.02180776014
A42: =IF($A$1>=17,17,"") -> 17 | B42: 87.42857143 | D42: 42.57142857 | E42: 0.034664903
A43: =IF($A$1>=18,18,"") -> 18 | B43: 92.57142857 | D43: 37.42857143 | E43: 0.04752204586
A44: =IF($A$1>=19,19,"") -> 19 | B44: 97.71428571 | D44: 32.28571429 | E44: 0.06037918871
A45: =IF($A$1>=20,20,"") -> 20 | B45: 102.8571429 | D45: 27.14285714 | E45: 0.07323633157
A46: =IF($A$1>=21,21,"") -> 21 | B46: 108 | D46: 22 | E46: 0.08609347443
A47: =IF($A$1>=22,22,"") -> 22 | B47: 113.1428571 | D47: 16.85714286 | E47: 0.09895061728
A48: =IF($A$1>=23,23,"") -> 23 | B48: 118.2857143 | D48: 11.71428571 | E48: 0.1118077601
A49: =IF($A$1>=24,24,"") -> 24 | B49: 123.4285714 | D49: 6.571428571 | E49: 0.124664903
A50: =IF($A$1>=25,25,"") -> 25 | B50: 128.5714286 | D50: 1.428571429 | E50: 0.1375220459
A51: =IF($A$1>=26,26,"") -> 26 | B51: 133.7142857 | D51: 0 | E51: 0.1410934744
A52: =IF($A$1>=27,27,"") -> 27 | B52: 138.8571429 | D52: 0 | E52: 0.1410934744
A53: =IF($A$1>=28,28,"") -> 28 | B53: 144 | D53: 0 | E53: 0.1410934744
A54: =IF($A$1>=29,29,"") -> 29 | B54: 149.1428571 | D54: 0 | E54: 0.1410934744
A55: =IF($A$1>=30,30,"") -> 30 | B55: 154.2857143 | D55: 0 | E55: 0.1410934744
A56: =IF($A$1>=31,31,"") -> 31 | B56: 159.4285714 | D56: 0 | E56: 0.1410934744
A57: =IF($A$1>=33,33,"") -> 33 | B57: =IF(A57<=$A$1,$A$2/$A$1*A57,"") -> 169.7142857 | D57: 0 | E57: 0.1410934744
A58: =IF($A$1>=34,34,"") -> 34 | B58: =IF(A58<=$A$1,$A$2/$A$1*A58,"") -> 174.8571429 | D58: 0 | E58: 0.1410934744
A59: =IF($A$1>=35,35,"") -> 35 | B59: =IF(A59<=$A$1,$A$2/$A$1*A59,"") -> 180 | D59: 0 | E59: 0.1410934744
A61: Aufgenommene Alkoholmenge: | E61: =A1*E12 -> 350 | F61: g = | G61: =E61*1.25 -> 437.5 | H61: ml
A63: Das entspricht
B65: =$G$61/E65*100/1000 -> 8.75 | D65: l Bier mit | E65: =D14 -> 5 | F65: Vol.-%
A66: oder | B66: =$G$61/E66*100/1000 -> 2.916666667 | D66: l Wein mit | E66: =D15 -> 15 | F66: Vol.-%
A67: oder | B67: =$G$61/E67*100/1000 -> 1.166666667 | D67: l Schnaps mit | E67: =D16 -> 37.5 | F67: Vol.-%

Sheet Tabelle2

Sheet Tabelle3
